bitfinex/quotes_ETHUSD_20250511
["timestamp","ask_amount","ask_price","bid_price","bid_amount"]
[1746921865836,0.55,2589.9,2588.6,7.675]
[1746921866560,4.69238447,2590.9,2588.7,8.7674]
[1746921866728,1.3827,2590.6,2588.7,8.7674]
[1746921867059,5.24290464,2590.6,2588.7,8.7674]
[1746921867229,0.55,2590.4,2588.8,9.31724]
[1746921867562,0.55,2590.4,2588.9,8.03861267]
[1746921867767,0.8327,2590.6,2589.0,0.7674]
[1746921867966,0.8327,2591.6,2589.1,0.8060015]
[1746921868259,0.8327,2591.6,2589.4,0.55]
[1746921868463,0.8327,2591.6,2589.7,0.7674]
[1746921868630,0.8327,2591.6,2589.9,8.7674]
[1746921870754,0.8327,2591.6,2590.0,0.03859277]
[1746921870955,0.8327,2591.6,2590.1,0.8196]
[1746921871336,0.8327,2591.6,2590.3,8.0]
[1746921871657,0.8327,2591.6,2589.6,8.0]
[1746921871658,0.55,2591.1,2590.0,3.826]
[1746921872056,0.55,2590.5,2588.9,0.8196]
[1746921872233,0.55,2590.1,2588.9,0.8196]
[1746921872638,0.55,2590.1,2589.0,0.03861852]
[1746921872867,0.55,2590.1,2588.9,0.8196]
[1746921873258,3.86163635,2589.6,2588.5,0.8196]
[1746921873459,1.3492,2589.5,2588.1,0.8196]
[1746921873791,1.3492,2589.5,2588.2,0.46416]
[1746921873939,0.55,2589.3,2588.2,0.46416]
[1746921874438,0.55,2589.4,2588.2,0.46416]
[1746921874690,0.55,2589.4,2588.2,8.46416]
[1746921874848,0.55,2589.4,2588.3,0.03863012]
[1746921875048,0.55,2589.4,2588.3,1.31473901]
[1746921875286,0.7992,2589.5,2588.3,1.31473901]
[1746921875436,0.7992,2590.4,2588.4,0.8196]
[1746921875641,8.4776955,2590.4,2588.4,0.8196]
[1746921875837,0.55,2590.1,2588.4,0.8196]
[1746921876039,0.55,2589.9,2588.5,0.2134339]
[1746921876254,1.3492,2589.4,2588.0,0.8196]
[1746921876974,0.55,2588.7,2587.3,4.6406]
[1746921877553,0.55,2588.5,2587.3,0.8196]
[1746921877750,0.55,2588.3,2587.2,3.818]
[1746921877949,3.819,2588.8,2586.5,4.6386]
[1746921877950,0.55,2587.7,2586.5,4.6386]
[1746921878279,0.55,2587.5,2586.6,0.46386]
[1746921878658,0.55,2587.5,2586.6,0.50250863]
[1746921878857,3.819,2588.6,2586.7,0.8196]
[1746921879083,0.55,2588.5,2586.8,0.03864101]
[1746921879238,0.55,2588.5,2586.7,0.8196]
[1746921879442,0.44129783,2588.5,2586.7,0.8196]
[1746921879679,1.3492,2588.6,2586.8,0.03864106]
[1746921880043,1.3492,2588.6,2586.9,0.7841]
[1746921880248,1.3492,2588.6,2587.1,8.0]
[1746921880580,1.3492,2588.6,2587.3,8.0]
[1746921880756,0.7715,2589.1,2587.5,0.7841]
[1746921881262,0.55,2589.0,2587.5,0.7841]
[1746921881668,0.7715,2589.1,2587.6,0.03863546]
[1746921881853,0.7715,2589.1,2587.5,0.7841]
[1746921882268,0.55,2589.0,2587.5,0.7841]
[1746921882985,4.41249991,2589.0,2587.5,0.7841]
[1746921883185,0.55,2588.6,2587.5,0.7841]
[1746921883383,0.55,2588.6,2587.6,0.03863892]
[1746921883587,0.55,2588.6,2587.7,0.03863519]
[1746921883796,0.55,2588.6,2587.5,8.7841]
[1746921884080,0.55,2588.6,2587.5,8.0]
[1746921884384,0.55,2588.4,2587.4,3.777]
[1746921884585,0.7715,2588.7,2587.5,8.0]
[1746921884802,0.7715,2588.7,2587.4,8.0]
[1746921884955,0.7715,2588.7,2587.4,3.778]
[1746921885153,0.55,2588.6,2587.5,1.1778]
[1746921885385,0.55,2588.6,2587.6,0.03863933]
[1746921885857,0.55,2588.6,2587.5,0.03864084]
[1746921886058,0.7715,2588.7,2587.5,0.03864084]
[1746921886255,0.7715,2588.7,2587.3,11.77]
[1746921886792,0.55,2588.6,2587.3,11.77]
[1746921886963,0.7715,2588.7,2587.5,0.7501]
[1746921887354,0.55,2588.6,2587.5,0.7501]
[1746921887548,0.55,2588.6,2587.1,0.7501]
[1746921887864,0.55,2588.4,2587.2,0.03864102]
[1746921888083,0.55,2588.4,2587.2,0.03863895]
[1746921888393,0.55,2588.2,2586.7,0.7501]
[1746921888596,3.86439061,2587.8,2586.8,0.499096]
[1746921888769,0.55,2587.5,2586.8,0.499096]
[1746921889201,0.7775,2587.6,2586.9,0.03865158]
[1746921889492,0.55,2587.5,2586.8,0.499096]
[1746921889897,0.55,2587.5,2586.9,0.03865181]
[1746921890056,0.55,2587.5,2586.4,3.78]
[1746921890252,0.55,2587.5,2586.3,8.3061]
[1746921890485,0.55,2587.5,2586.4,8.03865522]
[1746921890655,0.7775,2587.6,2586.4,0.03865522]
[1746921890855,0.55,2587.5,2586.4,8.83447552]
[1746921891306,0.55,2587.5,2586.4,0.83447552]
[1746921891590,0.55,2587.5,2586.4,8.87313076]
[1746921891998,0.7775,2587.6,2586.4,8.87313076]
[1746921892200,0.7775,2587.6,2586.4,8.83447552]
[1746921892404,0.7775,2587.6,2586.5,1.33625755]
[1746921892691,0.0225,2802.3,2586.5,1.33625755]
[1746921892692,0.767,2588.6,2586.7,0.7681]
[1746921892909,0.767,2588.6,2586.9,0.7681]
[1746921893097,0.55,2588.5,2587.1,8.7681]
[1746921893300,0.767,2588.6,2587.3,8.0]
[1746921893497,0.767,2588.6,2587.4,0.03863749]
[1746921893701,0.55,2588.5,2587.4,0.03863754]
[1746921893898,0.767,2588.6,2587.4,0.03863754]
[1746921894089,0.767,2588.6,2587.4,1.34565229]
[1746921894290,0.55,2588.5,2587.4,1.34565229]
[1746921894497,0.767,2588.6,2587.4,1.34565229]
[1746921894683,0.767,2588.6,2587.5,0.7681]
[1746921894899,0.767,2588.6,2587.6,0.03863174]
[1746921895102,0.767,2588.6,2587.7,0.03863175]
[1746921895419,0.55,2588.5,2587.6,0.21137465]
[1746921895615,0.55,2588.5,2587.5,0.7681]
[1746921896176,0.55,2588.5,2587.3,11.753]
[1746921896420,11.86161301,2589.6,2586.7,3.744]
[1746921896421,0.55,2588.1,2586.7,3.744]
[1746921896574,0.55,2588.1,2586.6,7.522]
[1746921896921,0.55,2588.1,2586.7,8.03864955]
[1746921897084,0.55,2588.1,2586.8,1.55606496]
[1746921897277,0.55,2587.9,2586.8,1.55606496]
[1746921897473,0.55,2587.9,2586.6,3.778]
[1746921897679,0.55,2587.9,2586.7,8.0]
[1746921898221,0.55,2587.9,2586.6,3.778]
[1746921898711,0.55,2587.9,2586.2,8.7681]
[1746921899048,0.55,2587.9,2586.5,11.725]
[1746921899210,0.55,2587.9,2586.6,1.5503]
[1746921899509,0.55,2587.7,2586.6,1.5503]
[1746921899672,0.55,2587.7,2586.5,3.725]
[1746921899875,0.55,2587.7,2586.6,8.0]
[1746921900084,0.55,2587.9,2586.4,3.778]
[1746921900309,3.716,2588.0,2585.4,10.24]
[1746921900636,3.716,2588.0,2585.8,0.7586]
[1746921900637,0.55,2587.1,2585.8,0.7586]
[1746921900843,0.55,2586.9,2585.5,8.2426]
[1746921901132,0.55,2586.5,2585.1,0.7586]
[1746921901332,0.55,2586.3,2585.1,0.7586]
[1746921901539,0.55,2586.1,2584.9,3.714]
[1746921901750,0.55,2586.1,2585.0,0.78787693]
[1746921902036,0.55,2585.9,2585.0,0.7492]
[1746921902194,0.7619,2586.0,2585.1,0.03867934]
[1746921902706,0.55,2585.9,2585.0,0.7586]
[1746921902908,0.55,2585.9,2584.0,0.55]
[1746921902909,0.55,2585.7,2583.9,0.51335636]
[1746921903115,0.55,2585.0,2583.1,0.7586]
[1746921903417,0.55,2584.8,2583.1,0.7586]
[1746921904233,0.55,2584.8,2583.5,11.746]
[1746921904461,0.55,2584.8,2584.4,4.09855106]
[1746921904597,0.7619,2584.9,2584.5,8.0]
[1746921904798,0.7619,2584.9,2584.5,8.03869101]
[1746921905233,0.8184,2585.3,2584.5,8.03869101]
[1746921905446,0.8184,2586.1,2584.6,0.03867985]
[1746921905647,0.8184,2587.3,2584.7,0.8248]
[1746921905853,0.8184,2587.3,2584.5,8.55]
[1746921905854,0.8184,2587.3,2585.2,0.8248]
[1746921906057,0.8184,2587.3,2585.4,8.0]
[1746921906350,0.8184,2588.1,2585.6,0.8248]
[1746921906509,0.8184,2588.1,2586.0,1.3748]
[1746921906713,0.8184,2588.1,2586.1,7.527]
[1746921906915,0.8184,2588.1,2586.2,8.83518]
[1746921907219,0.8184,2587.4,2586.2,8.83518]
[1746921907419,0.55,2586.8,2585.1,0.8248]
[1746921907619,0.55,2586.8,2584.9,3.747]
[1746921907620,1.3684,2586.2,2584.9,3.747]
[1746921908037,0.55,2586.1,2584.3,18.4838]
[1746921908237,0.55,2585.9,2584.3,18.4838]
[1746921908667,0.55,2585.7,2584.3,18.4838]
[1746921908818,0.8184,2587.7,2584.7,0.8248]
[1746921909018,0.8184,2587.7,2584.9,8.0]
[1746921909363,3.86449758,2587.7,2585.1,8.8248]
[1746921909584,3.86544686,2587.1,2585.3,8.0]
[1746921909748,4.98494469,2587.0,2585.4,1.18706593]
[1746921909918,0.55,2586.9,2585.4,1.18706593]
[1746921910118,0.55,2586.9,2585.5,0.03866542]
[1746921910443,0.7572,2587.4,2585.6,0.7525]
[1746921910615,0.7572,2588.0,2585.9,0.7525]
[1746921910812,0.45372,2587.9,2586.1,8.0]
[1746921911013,4.5372,2588.0,2586.2,0.0386517]
[1746921911231,4.5372,2588.0,2586.2,0.03864991]
[1746921911423,0.7572,2588.0,2586.2,0.03864991]
[1746921911624,3.78,2587.9,2586.1,8.0]
[1746921911813,3.78,2587.9,2586.2,0.03865291]
[1746921912034,0.45372,2587.8,2586.2,1.6925432]
[1746921912251,0.55,2587.7,2586.2,1.65389029]
[1746921912558,0.45372,2587.8,2586.3,3.87565146]
[1746921912759,0.55,2587.7,2586.3,3.837]
[1746921912930,0.55,2587.7,2586.4,8.0]
[1746921913118,0.55,2587.7,2585.9,0.7525]
[1746921913119,0.55,2587.5,2585.9,0.7525]
[1746921913318,0.55,2586.7,2585.2,0.7525]
[1746921913652,3.86508039,2587.3,2585.2,0.7525]
[1746921913653,0.55,2586.5,2585.3,0.45815]
[1746921913854,0.55,2586.5,2585.2,0.7525]
[1746921914259,0.55,2586.3,2585.2,0.7525]
[1746921914419,0.55,2586.5,2585.3,0.03867706]
[1746921914620,0.55,2586.5,2585.3,0.03867069]
[1746921915036,0.55,2586.5,2585.3,0.03866915]
[1746921915236,0.55,2586.3,2584.8,0.8196]
[1746921915448,0.55,2586.3,2584.9,0.03867858]
[1746921915865,0.55,2586.5,2584.9,0.03867858]
[1746921916070,0.55,2586.5,2584.9,0.03867157]
[1746921916271,0.7779,2587.1,2585.0,0.8196]
[1746921916441,3.86254873,2589.0,2584.9,0.03867157]
[1746921916442,4.5579,2587.5,2585.2,0.8196]
[1746921916645,4.6069,2587.5,2585.4,8.0]
[1746921916939,0.7779,2588.1,2585.7,0.8196]
[1746921917162,0.7779,2588.1,2586.0,0.8196]
[1746921917471,4.6417604,2588.1,2586.3,0.8196]
[1746921917641,3.86398763,2588.0,2586.3,0.8196]
[1746921917829,0.55,2587.8,2586.3,0.8196]
[1746921918035,4.6069,2588.1,2586.4,0.03865488]
[1746921918226,4.6069,2588.1,2586.4,0.0386494]
[1746921918570,8.47079924,2588.1,2586.3,0.8196]
[1746921918764,0.55,2588.0,2586.3,0.8196]
[1746921918982,4.6069,2588.1,2586.3,0.85825897]
[1746921918983,0.55,2587.2,2586.3,0.85825897]
[1746921919134,0.55,2587.2,2586.3,0.8196]
[1746921919584,0.55,2587.2,2586.4,0.03866025]
[1746921919946,0.55,2587.2,2586.3,0.8196]
[1746921920732,0.55,2587.2,2586.4,0.03866004]
[1746921920936,0.7839,2587.8,2586.4,0.03866004]
[1746921921235,0.7839,2587.8,2586.3,0.8196]
[1746921921461,0.7839,2587.8,2586.4,0.03865585]
[1746921921836,3.829,2588.0,2586.5,0.8243]
[1746921922176,0.7839,2589.0,2586.8,0.8243]
[1746921922376,3.829,2589.6,2587.0,0.8243]
[1746921922377,0.7839,2589.5,2587.0,0.8243]
[1746921922547,0.7839,2589.5,2587.3,0.8243]
[1746921922882,0.7839,2589.5,2587.5,8.8243]
[1746921922883,4.64574579,2589.5,2587.5,8.8243]
[1746921923085,0.7839,2589.5,2587.6,1.30196378]
[1746921923248,3.86211584,2589.3,2587.6,1.26333]
[1746921923596,0.7839,2589.5,2587.7,0.86293617]
[1746921923741,0.7839,2589.5,2587.7,0.86292989]
[1746921924080,4.6129,2589.9,2587.7,0.8243]
[1746921924268,0.46129,2589.8,2587.9,0.8243]
[1746921924470,0.46129,2589.8,2588.2,0.8243]
[1746921924670,0.46129,2589.8,2588.4,8.0]
[1746921925255,0.55,2589.6,2588.4,8.03862978]
[1746921925676,0.55,2589.7,2588.4,8.03862978]
[1746921925873,0.55,2589.7,2588.5,1.18666298]
[1746921926074,0.55,2589.7,2588.6,0.03862545]
[1746921926541,3.828,2589.9,2588.7,0.7731]
[1746921926780,3.86140377,2589.8,2588.7,0.7731]
[1746921926986,0.55,2589.7,2588.7,0.7731]
[1746921927187,0.44113883,2589.6,2588.7,0.7731]
[1746921927343,0.55,2589.7,2588.7,0.7731]
[1746921927871,0.7823,2589.8,2588.7,0.7731]
[1746921928041,0.7823,2590.2,2588.8,0.03862326]
[1746921928451,0.7823,2590.2,2588.9,8.0]
[1746921928656,0.7823,2590.2,2589.0,1.1827]
[1746921928878,0.7823,2590.8,2589.2,8.7731]
[1746921929096,0.7823,2590.8,2589.3,0.03861277]
[1746921929279,0.7823,2590.8,2589.3,0.03861281]
[1746921929452,0.7823,2591.7,2589.4,0.7731]
[1746921929657,0.7823,2591.7,2589.6,0.7731]
[1746921929850,0.7823,2591.7,2589.3,11.50017128]
[1746921929851,0.7823,2591.7,2589.9,0.8318]
[1746921930179,3.34074111,2592.3,2590.2,0.8318]
[1746921930409,3.34074111,2592.3,2590.3,8.0]
[1746921930616,3.34074111,2592.3,2590.6,0.8318]
[1746921930773,3.34074111,2592.3,2590.9,0.8318]
[1746921930975,4.11168136,2592.7,2591.4,8.0]
[1746921931220,3.21225106,2592.7,2592.4,0.8318]
[1746921931402,3.21225106,2592.7,2592.4,8.8318]
[1746921931714,4.88262162,2592.9,2592.4,0.8318]
[1746921931715,4.09487268,2592.9,2592.4,0.8318]
[1746921931920,4.09487268,2592.9,2591.2,0.8318]
[1746921932276,4.09487268,2592.9,2591.3,0.03857454]
[1746921932277,0.7579,2592.8,2591.3,0.03857454]
[1746921932476,4.09487268,2592.9,2591.3,8.87037761]
[1746921932707,4.09487268,2592.9,2591.4,0.8318]
[1746921932907,4.09487268,2592.9,2591.6,0.8318]
[1746921933311,11.826,2593.4,2591.6,0.8318]
[1746921933514,0.55,2592.3,2591.2,0.8318]
[1746921933713,0.55,2591.9,2590.6,0.8318]
[1746921933913,0.55,2591.9,2590.7,0.03859954]
[1746921934146,0.55,2592.1,2590.7,0.84978844]
[1746921934427,3.85886478,2591.5,2590.7,0.8112]
[1746921934595,0.55,2591.4,2590.7,0.8112]
[1746921934795,0.7579,2592.4,2590.8,3.99259491]
[1746921934988,0.7579,2592.4,2590.9,3.976]
[1746921935189,0.55,2591.8,2590.9,3.976]
[1746921935534,8.0,2592.6,2589.3,1.26017128]
[1746921935535,3.86020722,2590.6,2589.5,0.8112]
[1746921935683,4.504,2590.5,2589.5,0.8112]
[1746921935881,0.55,2590.0,2589.0,0.8112]
[1746921936129,8.4220306,2590.0,2589.0,0.8112]
[1746921936278,0.55,2589.3,2589.0,0.8112]
[1746921936483,0.55,2589.3,2588.7,3.29853186]
[1746921936808,0.55,2589.2,2588.7,3.29853186]
[1746921936977,4.41226168,2589.2,2588.7,3.29853186]
[1746921937182,4.41279357,2588.8,2588.7,3.29853186]
[1746921937377,0.55,2588.5,2587.6,0.8112]
[1746921937582,0.55,2588.2,2587.6,0.8112]
[1746921937885,4.025,2588.3,2586.7,0.8112]
[1746921938090,4.025,2588.3,2586.8,0.47662]
[1746921938091,0.55,2588.1,2586.8,0.47662]
[1746921938305,0.55,2587.7,2586.4,3.29853186]
[1746921938505,0.55,2587.4,2586.2,0.8112]
[1746921938824,0.55,2587.7,2586.3,0.03865749]
[1746921939167,5.90374113,2589.2,2586.6,5.11654113]
[1746921939324,5.11654113,2589.6,2587.9,0.8112]
[1746921939993,3.8622523,2589.2,2587.9,0.8112]
[1746921940188,5.11654113,2589.6,2587.9,0.8112]
[1746921940392,3.86174937,2589.5,2587.9,0.8112]
[1746921940590,7.97,2589.5,2588.0,0.03862989]
[1746921941105,9.07154113,2590.1,2588.1,0.7704]
[1746921941839,9.07154113,2590.1,2588.0,0.7704]
[1746921942218,3.86163366,2589.6,2588.0,0.7704]
[1746921942536,0.55,2589.3,2588.1,0.03862888]
[1746921942720,0.55,2589.3,2589.2,2.0]
[1746921942936,0.55,2589.6,2589.2,2.0]
[1746921943295,9.07154113,2590.1,2589.2,2.0]
[1746921943493,3.955,2590.0,2589.2,2.0]
[1746921943807,0.55,2589.9,2589.2,2.0]
[1746921944106,5.11654113,2590.1,2589.2,2.0]
[1746921944322,9.12454113,2590.1,2589.2,2.0]
[1746921944523,4.008,2590.1,2589.2,2.0]
[1746921944727,3.955,2590.2,2589.3,0.7704]
[1746921945068,5.11654113,2590.4,2589.3,0.7704]
[1746921945211,3.955,2590.7,2589.4,0.03861151]
[1746921945723,5.11654113,2590.9,2589.4,0.03861151]
[1746921945919,8.97629912,2590.9,2589.4,0.30090115]
[1746921946110,5.11654113,2590.9,2589.4,0.30090115]
[1746921946506,5.11654113,2591.4,2589.5,0.7703]
[1746921946712,3.955,2591.7,2589.7,0.7703]
[1746921947034,3.85866735,2591.6,2589.9,0.7703]
[1746921947220,3.955,2591.7,2590.1,0.7703]
[1746921947428,3.955,2591.7,2590.2,0.03859506]
[1746921947622,3.85791489,2592.1,2590.4,8.0]
[1746921947822,8.0,2592.2,2590.6,7.95]
[1746921948044,5.11654113,2591.9,2590.5,0.7703]
[1746921948212,0.55,2591.7,2590.6,0.03859853]
[1746921948418,0.51165411,2591.8,2590.6,0.03859853]
[1746921948656,0.55,2591.7,2590.6,0.03859853]
[1746921949014,3.85928231,2591.2,2590.5,0.7703]
[1746921949257,0.55,2591.2,2590.5,0.7703]
[1746921949461,0.55,2591.4,2590.5,0.7703]
[1746921949726,1.17315126,2591.4,2590.5,0.7703]
[1746921950275,0.7959,2591.7,2590.5,0.7703]
[1746921950582,5.11654113,2591.5,2590.0,0.7635]
[1746921950740,0.55,2591.1,2590.1,0.03860616]
[1746921951061,4.504,2591.1,2590.1,0.03860409]
[1746921951426,3.954,2591.2,2590.1,0.03860409]
[1746921951624,0.55,2591.1,2590.1,0.03860409]
[1746921951825,0.55,2591.4,2590.1,0.03860409]
[1746921952064,1.0004,2591.4,2590.1,0.03859635]
[1746921952449,0.55,2591.8,2590.1,0.03859635]
[1746921952655,0.55,2591.5,2590.1,0.03859635]
[1746921952853,0.55,2591.5,2590.2,4.018]
[1746921953067,0.55,2591.5,2590.3,8.03859773]
[1746921953377,3.954,2591.6,2590.4,0.7635]
[1746921953701,0.55,2591.5,2590.5,0.91880294]
[1746921953859,0.8301,2592.2,2590.5,0.91880294]
[1746921954195,3.954,2592.5,2590.6,0.7635]
[1746921954389,3.954,2592.5,2590.7,0.80208184]
[1746921954690,0.3954,2592.4,2591.0,0.7635]
[1746921954869,0.3954,2592.4,2591.2,8.0]
[1746921955072,19.01254113,2592.8,2591.4,0.7635]
[1746921955288,8.63953141,2593.1,2591.5,0.03857636]
[1746921955495,8.63953141,2593.1,2591.6,0.7635]
[1746921955496,3.953,2593.1,2591.6,0.7635]
[1746921955695,0.29397071,2593.6,2591.6,0.7635]
[1746921955696,3.953,2593.8,2591.8,0.7635]
[1746921955899,5.11654113,2594.2,2592.1,0.7635]
[1746921956068,5.11654113,2594.9,2592.3,0.7635]
[1746921956406,0.02031228,2597.2,2595.5,0.7593]
[1746921956716,0.02031228,2598.3,2595.8,0.7593]
[1746921956897,3.84799761,2598.8,2596.3,5.11654113]
[1746921957104,5.37,2599.0,2596.4,46.94912182]
[1746921957308,1.154446,2603.7,2600.0,0.1]
[1746921957495,30.03832418,2605.7,2602.7,0.1]
[1746921957806,29.39151375,2605.7,2602.8,6.138]
[1746921958115,35.46351375,2605.7,2602.9,0.10863915]
[1746921958406,29.95935857,2605.7,2603.0,0.80304861]
[1746921958605,21.29151375,2605.7,2603.1,0.03837332]
[1746921958808,3.838082,2605.5,2603.0,0.45583077]
[1746921959112,3.78847689,2605.2,2601.9,0.05]
[1746921959407,6.57537344,2605.1,2602.4,0.05]
[1746921959625,1.7163082,2605.4,2602.1,0.05]
[1746921959907,0.7877,2605.2,2600.3,1.09730917]
[1746921960207,6.95114514,2605.0,2601.1,0.7583]
[1746921960359,0.1,2601.5,2597.1,1.20481312]
[1746921960591,0.48568866,2601.4,2597.7,6.95114514]
[1746921960783,0.20071997,2601.4,2598.5,6.95114514]
[1746921961014,0.0384394,2603.3,2599.4,0.7583]
[1746921961315,21.28807459,2603.2,2599.4,0.7583]
[1746921961532,0.538206,2606.3,2603.2,7.158473]
[1746921961680,13.863,2604.8,2600.9,0.03841937]
[1746921962004,1.4863,2604.7,2601.0,0.03842718]
[1746921962179,0.1,2603.7,2601.0,0.03842718]
[1746921962382,8.0,2602.1,2597.9,0.7583]
[1746921962695,8.0,2600.5,2597.9,0.7583]
[1746921962894,22.35842718,2600.4,2597.9,0.7583]
[1746921963234,2.96987116,2600.3,2597.9,0.7583]
[1746921963384,0.03842718,2600.2,2597.9,0.7583]
[1746921963585,8.0,2599.7,2597.9,0.7583]
[1746921963928,6.95114514,2599.0,2595.4,0.7583]
[1746921964130,3.84792981,2598.8,2595.5,0.03850778]
[1746921964437,0.7877,2598.5,2595.4,0.7583]
[1746921964619,6.95114514,2597.0,2593.7,0.7583]
[1746921964800,3.85523043,2593.9,2593.7,0.7583]
[1746921965124,23.27308503,2596.9,2592.2,0.788]
[1746921965125,0.03538503,2593.8,2592.2,0.788]
[1746921965296,3.8574294,2592.4,2592.3,0.03856991]
[1746921965498,3.8574294,2592.4,2588.9,0.1]
[1746921965499,22.99374294,2592.4,2588.9,0.02031228]
[1746921965697,3.86383833,2588.1,2585.8,5.03953572]
[1746921965908,22.836,2588.0,2585.8,5.03953572]
[1746921966094,8.0,2587.8,2585.9,0.02031228]
[1746921966303,0.66191442,2587.9,2585.8,5.03953572]
[1746921966506,3.86311327,2588.6,2585.8,5.03953572]
[1746921966507,3.86515967,2587.3,2585.8,5.03953572]
[1746921966723,8.0,2588.6,2585.8,5.03953572]
[1746921966724,0.7592,2590.9,2585.9,42.002339]
[1746921966891,3.85936474,2591.1,2589.6,0.2505]
[1746921967091,0.20153042,2591.7,2589.6,0.2505]
[1746921967311,3.85873287,2591.6,2589.6,0.2505]
[1746921967514,3.86010962,2590.6,2589.6,0.2505]
[1746921967710,3.8585133,2591.7,2589.6,0.2505]
[1746921967894,3.8585133,2591.7,2586.7,13.874]
[1746921967895,8.0,2590.1,2587.0,0.03861149]
[1746921968115,3.85936474,2591.1,2587.0,0.03861149]
[1746921968434,8.0,2591.1,2586.3,9.81359792]
[1746921968603,13.874,2591.2,2586.3,9.249]
[1746921968806,13.874,2591.2,2586.8,0.1]
[1746921969031,0.7592,2592.3,2588.4,0.1]
[1746921969259,0.7592,2593.4,2588.9,8.1]
[1746921969504,0.7592,2593.4,2589.7,8.0]
[1746921969756,0.20065802,2594.0,2589.7,8.0]
[1746921969901,0.20065802,2594.0,2589.8,0.03858853]
[1746921970109,0.20065802,2594.0,2589.5,1.96813391]
[1746921970302,13.874,2594.4,2590.2,9.98573019]
[1746921970501,0.8218,2595.2,2590.9,6.95114514]
[1746921970749,0.8218,2595.2,2591.0,8.03857548]
[1746921970960,0.20068734,2594.4,2591.0,8.0]
[1746921971255,0.8218,2595.2,2591.0,8.0]
[1746921971435,0.8218,2595.2,2591.2,8.0]
[1746921971640,0.8218,2596.2,2591.4,8.0]
[1746921971947,6.93162819,2596.3,2591.5,5.19197386]
[1746921972101,0.20053681,2596.1,2590.6,1.99116721]
[1746921972304,3.85445575,2594.4,2590.7,0.03851653]
[1746921972544,3.85619996,2593.3,2590.6,1.155121]
[1746921972748,0.03854958,2593.2,2590.6,1.155121]
[1746921973047,0.03854958,2593.2,2590.7,0.0386099]
[1746921973247,8.0,2593.2,2589.4,13.876]
[1746921973417,0.83854958,2593.1,2589.5,1.3876]
[1746921973622,0.03854958,2593.1,2589.5,1.3876]
[1746921973967,3.85879888,2591.5,2589.5,1.3876]
[1746921974311,0.03854958,2591.4,2587.7,13.876]
[1746921974462,8.0,2591.0,2586.2,8.90277721]
[1746921974631,15.02599817,2590.2,2586.9,1.158051]
[1746921974831,8.0,2589.1,2586.1,0.20144911]
[1746921975031,8.0,2588.0,2586.1,0.20144911]
[1746921975260,3.86490308,2587.4,2586.1,0.20144911]
[1746921975459,0.03854958,2587.3,2584.4,23.127]
[1746921975672,15.37975893,2587.9,2585.6,0.20170226]
[1746921975673,0.03854958,2587.8,2585.6,0.20170226]
[1746921975885,8.03854958,2587.8,2584.5,0.03868067]
[1746921976090,7.03623526,2587.5,2583.9,0.03865744]
[1746921976238,0.03854958,2587.4,2585.1,0.20172782]
[1746921976593,0.03854958,2587.4,2584.6,13.887]
[1746921976731,0.03854958,2588.4,2585.1,0.20169543]
[1746921976931,0.03854958,2589.6,2586.4,1.91242861]
[1746921977135,0.03854958,2590.2,2586.7,1.9637551]
[1746921977491,0.03854958,2590.2,2586.5,24.07757831]
[1746921977492,0.03854958,2590.2,2587.1,8.0]
[1746921977634,0.7717,2591.7,2587.8,9.92515842]
[1746921977835,0.03854958,2591.6,2587.9,23.18360973]
[1746921978061,0.03854958,2592.0,2588.4,8.0]
[1746921978268,7.02686578,2591.6,2588.5,0.8]
[1746921978475,3.86060158,2590.3,2588.5,0.8]
[1746921978778,6.58313899,2591.6,2588.6,0.03862014]
[1746921978938,6.58313899,2591.6,2588.5,0.8]
[1746921978939,13.887,2591.9,2588.5,0.8]
[1746921979139,7.02686578,2591.6,2588.5,0.8]
[1746921979479,8.0,2590.1,2586.4,9.258]
[1746921979674,8.0,2590.1,2585.7,9.258]
[1746921979675,23.36391031,2590.0,2585.7,9.258]
[1746921979863,8.0,2589.9,2586.6,0.03864792]
[1746921980063,7.02686578,2589.7,2586.5,9.258]
[1746921980236,14.10591031,2590.0,2586.6,0.03865256]
[1746921980438,14.10591031,2590.0,2586.6,8.03865256]
[1746921980650,0.21691031,2590.0,2587.3,1.98107057]
[1746921980872,13.889,2591.3,2588.0,1.9245961]
[1746921981155,13.889,2591.3,2588.6,9.94475109]
[1746921981356,13.889,2591.3,2588.6,8.0]
[1746921981592,0.7717,2593.7,2589.3,8.0]
[1746921981809,0.7717,2593.7,2589.9,7.02686578]
[1746921982090,1.46607,2593.6,2590.3,0.55]
[1746921982293,0.7717,2594.8,2590.6,9.99116721]
[1746921982595,10.88133809,2594.4,2590.2,0.55]
[1746921982749,0.7717,2594.8,2590.9,8.55]
[1746921982948,3.85420863,2594.6,2591.2,0.55]
[1746921983165,13.889,2595.0,2591.3,0.03856773]
[1746921983370,3.85459178,2594.4,2591.5,0.55]
[1746921983567,1.3889,2594.9,2590.1,9.259]
[1746921983568,0.7717,2593.9,2590.1,9.259]
[1746921983806,8.0,2593.5,2590.2,0.03857755]
[1746921984009,8.0,2593.5,2590.1,9.259]
[1746921984010,3.85668556,2592.9,2590.1,9.259]
[1746921984173,0.55,2591.9,2590.2,0.03859027]
[1746921984372,0.54241383,2591.9,2590.2,1.00002769]
[1746921984569,0.54241383,2591.9,2587.1,1.9424819]
[1746921984570,0.54241383,2591.9,2588.8,9.259]
[1746921984781,8.0,2591.7,2588.8,9.259]